bitfinex-derivatives/quotes_BTCF0:USTF0_20241116
["timestamp","ask_amount","ask_price","bid_price","bid_amount"]
[1731796982355,0.54669804,90781.0,90769.0,0.06856748]
[1731796982558,0.415847,90781.0,90769.0,0.06856748]
[1731796985064,0.48441448,90781.0,90769.0,0.06856748]
[1731796985562,0.48441448,90781.0,90766.0,0.05537313]
[1731796988349,0.48441448,90781.0,90765.0,0.055056]
[1731796988761,0.48441448,90781.0,90777.0,0.05538907]
[1731796989463,0.48441448,90781.0,90778.0,0.0317]
[1731796990548,0.48441448,90781.0,90779.0,0.0318]
[1731796991361,0.56725448,90781.0,90779.0,0.0318]
[1731796996853,0.56725448,90781.0,90779.0,0.0619]
[1731797001695,0.56729448,90781.0,90779.0,0.0619]
[1731797002196,0.055048,90779.0,90778.0,0.00856833]
[1731797003000,0.137928,90779.0,90778.0,0.00856833]
[1731797004594,0.498728,90779.0,90778.0,0.00856833]
[1731797005298,0.55228126,90779.0,90778.0,0.00856833]
[1731797005896,0.498728,90779.0,90778.0,0.00856833]
[1731797006199,0.66254844,90779.0,90778.0,0.00856833]
[1731797006401,0.74911634,90779.0,90778.0,0.00856833]
[1731797007205,0.55228003,90779.0,90778.0,0.00856833]
[1731797007799,0.19148022,90779.0,90778.0,0.00856833]
[1731797008007,0.55228022,90779.0,90778.0,0.00856833]
[1731797009207,0.74925484,90779.0,90778.0,0.00856833]
[1731797010197,0.55228022,90779.0,90778.0,0.00856833]
[1731797011394,0.74925484,90779.0,90778.0,0.00856833]
[1731797012494,0.74925591,90779.0,90778.0,0.00856833]
[1731797013091,0.55228129,90779.0,90778.0,0.00856833]
[1731797014307,0.74926292,90779.0,90778.0,0.00856833]
[1731797015806,0.55228129,90779.0,90778.0,0.00856833]
[1731797017498,0.74926274,90779.0,90778.0,0.00856833]
[1731797017699,0.55228111,90779.0,90778.0,0.00856833]
[1731797018803,0.05505,90777.0,90773.0,0.04362033]
[1731797019000,0.16414916,90774.0,90773.0,0.04362033]
[1731797019499,0.16414916,90774.0,90773.0,0.15378281]
[1731797020605,0.23271664,90774.0,90773.0,0.15378281]
[1731797020810,0.16414916,90774.0,90773.0,0.15378281]
[1731797022206,0.41585,90776.0,90773.0,0.15378281]
[1731797022407,0.1641499,90774.0,90773.0,0.15378281]
[1731797022602,0.055051,90774.0,90773.0,0.11016248]
[1731797023006,0.055051,90774.0,90771.0,0.055052]
[1731797023007,0.2192009,90774.0,90771.0,0.055052]
[1731797023213,0.2192009,90774.0,90772.0,0.11016431]
[1731797025212,0.0535532,90773.0,90772.0,0.11016431]
[1731797025404,0.1345532,90773.0,90772.0,0.11016431]
[1731797025604,0.081,90773.0,90772.0,0.11016431]
[1731797025811,0.24515509,90773.0,90772.0,0.11016431]
[1731797026026,0.081,90773.0,90772.0,0.11016431]
[1731797026221,0.24515509,90773.0,90772.0,0.11016431]
[1731797026413,0.081,90773.0,90772.0,0.11016431]
[1731797028816,0.081,90773.0,90772.0,0.16521631]
[1731797029210,0.081,90773.0,90772.0,0.055052]
[1731797029515,0.081,90773.0,90772.0,0.16521752]
[1731797030619,0.16415202,90774.0,90772.0,0.11016552]
[1731797030919,0.081,90775.0,90774.0,0.055051]
[1731797031913,0.081,90775.0,90774.0,0.16521409]
[1731797033413,0.13129147,90779.0,90777.0,0.055049]
[1731797033723,0.081,90778.0,90777.0,0.055049]
[1731797033907,0.13129147,90780.0,90779.0,0.055048]
[1731797034108,0.21229147,90780.0,90779.0,0.055048]
[1731797034310,0.081,90780.0,90779.0,0.055048]
[1731797034509,0.081,90780.0,90779.0,0.16520502]
[1731797034909,0.13129147,90781.0,90779.0,0.16520502]
[1731797035112,0.21229147,90780.0,90779.0,0.16520502]
[1731797035619,0.081,90780.0,90779.0,0.16520502]
[1731797035809,0.13129147,90782.0,90781.0,0.055047]
[1731797036007,0.081,90782.0,90781.0,0.055047]
[1731797036419,0.081,90782.0,90781.0,0.1652016]
[1731797039226,0.11636995,90787.0,90781.0,0.1101546]
[1731797039421,0.07916,90782.0,90781.0,0.1652016]
[1731797040329,0.0051,90787.0,90786.0,0.055044]
[1731797040624,0.13129147,90791.0,90789.0,0.055042]
[1731797040823,0.07912,90790.0,90789.0,0.055042]
[1731797041024,0.3608,90793.0,90786.0,0.17872208]
[1731797041025,0.13129147,90792.0,90786.0,0.17872208]
[1731797041222,0.07912,90790.0,90789.0,0.055042]
[1731797042037,0.07912,90790.0,90789.0,0.1651875]
[1731797043827,0.3608,90793.0,90792.0,0.05504]
[1731797044016,0.43992,90793.0,90792.0,0.05504]
[1731797044419,0.43992,90793.0,90792.0,0.16518125]
[1731797049234,0.43992,90793.0,90792.0,0.16862346]
[1731797051624,0.0051,90797.0,90796.0,0.055038]
[1731797051820,0.08422,90797.0,90796.0,0.05848021]
[1731797052222,0.08422,90797.0,90796.0,0.16862146]
[1731797052825,0.08422,90797.0,90796.0,0.16517925]
[1731797053031,0.08422,90797.0,90796.0,0.16862114]
[1731797053423,0.08422,90797.0,90796.0,0.52942114]
[1731797053625,0.0051,90797.0,90796.0,0.52942114]
[1731797054136,0.0051,90797.0,90796.0,0.52597925]
[1731797054935,0.0051,90797.0,90796.0,0.55857925]
[1731797057534,0.0051,90797.0,90796.0,0.61345092]
[1731797061251,0.0051,90797.0,90796.0,0.87753003]
[1731797062030,0.0051,90797.0,90796.0,0.61345092]
[1731797062229,0.0051,90797.0,90796.0,0.87700843]
[1731797062542,0.0051,90797.0,90796.0,0.61345092]
[1731797069542,0.0051,90797.0,90796.0,0.87700783]
[1731797070445,0.0051,90797.0,90796.0,0.61345092]
[1731797070845,0.0051,90797.0,90796.0,0.63547791]
[1731797071846,0.0051,90797.0,90796.0,0.27467791]
[1731797072037,0.0051,90797.0,90796.0,0.63547791]
[1731797075941,0.0051,90797.0,90796.0,0.96584802]
[1731797077248,0.0051,90797.0,90796.0,1.27688359]
[1731797077649,0.0051,90797.0,90796.0,0.63547791]
[1731797081334,0.0051,90797.0,90796.0,1.27708484]
[1731797081539,0.0051,90797.0,90796.0,0.96584802]
[1731797082252,0.0051,90797.0,90796.0,1.277153]
[1731797082546,0.0051,90797.0,90796.0,0.94678289]
[1731797089251,0.0051,90797.0,90796.0,0.94674756]
[1731797089846,0.0051,90797.0,90796.0,0.91414756]
[1731797094257,0.0051,90797.0,90796.0,0.91394763]
[1731797095844,0.0051,90797.0,90796.0,1.24430859]
[1731797096662,0.0051,90797.0,90796.0,0.93323887]
[1731797098954,0.0051,90797.0,90796.0,0.57243887]
[1731797099156,0.0051,90797.0,90796.0,0.93323887]
[1731797100252,0.0051,90797.0,90796.0,0.91278545]
[1731797100448,0.0051,90797.0,90796.0,0.93323283]
[1731797100769,0.0051,90797.0,90796.0,0.91267184]
[1731797102259,0.0051,90797.0,90796.0,0.55187184]
[1731797102451,0.0051,90797.0,90796.0,0.41872514]
[1731797102648,0.0051,90797.0,90796.0,0.44027788]
[1731797102852,0.0051,90797.0,90796.0,0.10990967]
[1731797104463,0.0051,90797.0,90796.0,0.44027788]
[1731797104649,0.0051,90797.0,90796.0,0.55041428]
[1731797105267,0.0051,90797.0,90796.0,0.8585892]
[1731797105768,0.0051,90797.0,90796.0,0.52822099]
[1731797107067,0.0051,90797.0,90796.0,0.85849736]
[1731797107672,0.0051,90797.0,90796.0,0.52822099]
[1731797111452,0.0051,90797.0,90796.0,0.85848297]
[1731797111667,0.0051,90797.0,90796.0,0.55030805]
[1731797112669,0.0051,90797.0,90796.0,0.85822966]
[1731797113173,0.0051,90797.0,90796.0,0.55030805]
[1731797114667,0.0051,90797.0,90796.0,0.85779229]
[1731797114869,0.0051,90797.0,90796.0,0.55030805]
[1731797115666,0.0051,90797.0,90796.0,0.22004607]
[1731797121964,0.0051,90797.0,90796.0,0.58084607]
[1731797122874,0.0051,90797.0,90796.0,0.88842465]
[1731797126464,0.0051,90797.0,90796.0,1.19589344]
[1731797126770,0.0051,90797.0,90796.0,0.88831486]
[1731797128176,0.0051,90797.0,90796.0,0.88833789]
[1731797130585,0.0051,90797.0,90796.0,0.95690537]
[1731797130765,0.0051,90797.0,90796.0,1.2871686]
[1731797131570,0.0051,90797.0,90796.0,1.2873128]
[1731797131969,0.0051,90797.0,90796.0,0.64941355]
[1731797132880,0.0051,90797.0,90796.0,0.97967678]
[1731797134465,0.0051,90797.0,90796.0,1.2873052]
[1731797134682,0.0051,90797.0,90796.0,0.97967678]
[1731797134877,0.0051,90797.0,90796.0,1.28740124]
[1731797135085,0.0051,90797.0,90796.0,0.97967678]
[1731797137783,0.0051,90797.0,90796.0,0.9570587]
[1731797142684,0.0051,90797.0,90796.0,0.88849122]
[1731797144381,0.0051,90797.0,90796.0,0.58084607]
[1731797144584,0.0051,90797.0,90796.0,0.8877028]
[1731797145773,0.0051,90797.0,90796.0,1.21801668]
[1731797146089,0.0051,90797.0,90796.0,1.21805485]
[1731797146302,0.0051,90797.0,90796.0,0.88774097]
[1731797146587,0.0051,90797.0,90796.0,1.21806397]
[1731797146793,0.0051,90797.0,90796.0,0.88774097]
[1731797148496,0.0051,90797.0,90796.0,0.52694097]
[1731797148689,0.0051,90797.0,90796.0,0.88774097]
[1731797150798,0.0051,90797.0,90796.0,0.88820044]
[1731797155283,0.0051,90797.0,90796.0,0.77806404]
[1731797155491,0.0051,90797.0,90796.0,0.88820044]
[1731797155793,0.0051,90797.0,90796.0,0.88797462]
[1731797157599,0.0051,90797.0,90796.0,0.85751006]
[1731797157799,0.0051,90797.0,90796.0,0.55038151]
[1731797158095,0.0051,90797.0,90796.0,0.85788309]
[1731797158288,0.0051,90797.0,90796.0,0.85786426]
[1731797158496,0.0051,90797.0,90796.0,0.55038151]
[1731797158817,0.0051,90797.0,90796.0,0.22004607]
[1731797160294,0.060137,90797.0,90796.0,0.22004607]
[1731797169396,0.060137,90797.0,90796.0,0.48421412]
[1731797169894,0.060137,90797.0,90796.0,0.48421816]
[1731797170092,0.060137,90797.0,90796.0,0.22004607]
[1731797170708,0.060137,90797.0,90796.0,0.48421558]
[1731797171095,0.060137,90797.0,90796.0,0.22004607]
[1731797172303,0.060137,90797.0,90796.0,0.48421014]
[1731797172503,0.0051,90797.0,90796.0,0.48421014]
[1731797172704,0.0051,90797.0,90796.0,0.22004607]
[1731797175314,0.0051,90797.0,90796.0,0.22348796]
[1731797176512,0.0051,90797.0,90796.0,0.22004607]
[1731797176703,0.0051,90797.0,90796.0,0.55038151]
[1731797176922,0.0051,90797.0,90796.0,0.5538234]
[1731797177109,0.0051,90797.0,90796.0,0.22348796]
[1731797177309,0.0051,90797.0,90796.0,0.5538234]
[1731797177501,0.0051,90797.0,90796.0,0.86189322]
[1731797177708,0.0051,90797.0,90796.0,0.5538234]
[1731797178016,0.0051,90797.0,90796.0,0.22348796]
[1731797178222,0.0051,90797.0,90796.0,0.5538234]
[1731797178407,0.0051,90797.0,90796.0,0.22348796]
[1731797179718,0.0051,90797.0,90796.0,0.5538234]
[1731797180308,0.0051,90797.0,90796.0,0.22348796]
[1731797180626,0.0051,90797.0,90796.0,0.5538234]
[1731797183212,0.0051,90797.0,90796.0,0.22348796]
[1731797183407,0.0051,90797.0,90796.0,0.5538234]
[1731797183619,0.0051,90797.0,90796.0,0.22004607]
[1731797183922,0.0051,90797.0,90796.0,0.22348798]
[1731797184215,0.0051,90797.0,90796.0,0.86238029]
[1731797184412,0.0051,90797.0,90796.0,0.86236259]
[1731797184614,0.0051,90797.0,90796.0,0.55380572]
[1731797185209,0.0051,90797.0,90796.0,0.5322378]
[1731797185616,0.0051,90797.0,90796.0,0.86260332]
[1731797185814,0.0051,90797.0,90796.0,0.5322378]
[1731797186819,0.0051,90797.0,90796.0,0.86261009]
[1731797187014,0.0051,90797.0,90796.0,0.5322378]
[1731797187217,0.0051,90797.0,90796.0,0.8622109]
[1731797187421,0.0051,90797.0,90796.0,0.55385858]
[1731797187927,0.0051,90797.0,90796.0,0.86221493]
[1731797188328,0.0051,90797.0,90796.0,0.53204467]
[1731797188927,0.0051,90797.0,90796.0,0.86241153]
[1731797189328,0.0051,90797.0,90796.0,0.53204269]
[1731797189629,0.0051,90797.0,90796.0,0.55386207]
[1731797189815,0.13639147,90797.0,90796.0,0.22348798]
[1731797190717,0.13639147,90797.0,90796.0,0.22348792]
[1731797192121,0.0051,90797.0,90796.0,0.22348792]
[1731797192826,0.13639147,90797.0,90796.0,0.22348792]
[1731797193217,0.0051,90797.0,90796.0,0.22348792]
[1731797194233,0.13653046,90797.0,90796.0,0.22348792]
[1731797194620,0.0051,90797.0,90796.0,0.22348792]
[1731797195426,0.13653772,90797.0,90796.0,0.22348792]
[1731797196041,0.0051,90797.0,90796.0,0.22348792]
[1731797196217,0.0051,90797.0,90796.0,0.22348802]
[1731797196731,0.13653537,90797.0,90796.0,0.22348802]
[1731797197921,0.13653537,90797.0,90796.0,0.86046153]
[1731797197922,0.0051,90797.0,90796.0,0.86046153]
[1731797199329,0.0051,90797.0,90796.0,0.55386211]
[1731797199717,0.0051,90797.0,90796.0,0.86039952]
[1731797200425,0.0051,90797.0,90796.0,0.22348802]
[1731797200630,0.0051,90797.0,90796.0,0.55386211]
[1731797200927,0.0051,90797.0,90796.0,0.22348802]
[1731797201130,0.13653537,90797.0,90796.0,0.22348802]
[1731797201314,0.0051,90797.0,90796.0,0.22348802]
[1731797201914,0.13653537,90797.0,90796.0,0.22348802]
[1731797203420,0.0051,90797.0,90796.0,0.22348802]
[1731797205533,0.0051,90797.0,90796.0,0.22004607]
[1731797207626,0.0051,90797.0,90796.0,0.48429251]
[1731797207827,0.0051,90797.0,90796.0,0.22004607]
[1731797208025,0.0051,90797.0,90796.0,0.48429251]
[1731797209342,0.0051,90797.0,90796.0,0.22004607]
[1731797210140,0.0051,90797.0,90796.0,0.48429251]
[1731797210332,0.0051,90797.0,90796.0,0.1651744]
[1731797211243,0.0051,90797.0,90796.0,0.42942084]
[1731797211443,0.0051,90797.0,90796.0,0.1651744]
[1731797213835,0.13654442,90797.0,90796.0,0.42937841]
[1731797215050,0.0051,90797.0,90796.0,0.1651744]
[1731797215252,0.13654338,90797.0,90796.0,0.42937841]
[1731797215643,0.0051,90797.0,90796.0,0.1651744]
[1731797216540,0.13654421,90797.0,90796.0,0.1651744]
[1731797216855,0.0051,90797.0,90796.0,0.1651744]
[1731797220051,0.0051,90797.0,90796.0,0.36331946]
[1731797221955,0.060137,90797.0,90796.0,0.36331946]
[1731797224457,0.060137,90797.0,90796.0,0.1651744]
[1731797224648,0.060137,90797.0,90796.0,0.36333422]
[1731797225056,0.060137,90797.0,90796.0,0.1651744]
[1731797225554,0.060137,90797.0,90796.0,0.36333541]
[1731797225960,0.060137,90797.0,90796.0,0.1651744]
[1731797226350,0.060137,90797.0,90796.0,0.36333407]
[1731797228050,0.060137,90797.0,90796.0,0.1651744]
[1731797231256,0.055038,90796.0,90795.0,0.05481941]
[1731797231457,0.0051,90797.0,90792.0,0.26420401]
[1731797231666,0.05504,90793.0,90792.0,0.26420401]
[1731797232150,0.05504,90793.0,90792.0,0.11013882]
[1731797233662,0.05504,90793.0,90792.0,0.16647629]
[1731797234863,0.12360748,90793.0,90792.0,0.16647629]
[1731797235065,0.12360748,90793.0,90792.0,0.3646236]
[1731797235371,0.41584,90793.0,90792.0,0.3646236]
[1731797235663,0.41584,90793.0,90792.0,0.30828613]
[1731797235863,0.41584,90793.0,90792.0,0.11013882]
[1731797236560,0.57995434,90793.0,90792.0,0.11013882]
[1731797236950,0.41584,90793.0,90792.0,0.11013882]
[1731797237350,0.57995434,90793.0,90792.0,0.11013882]
[1731797237558,0.41584,90793.0,90792.0,0.11013882]
[1731797237859,0.57995434,90793.0,90792.0,0.11013882]
[1731797238064,0.64852182,90793.0,90792.0,0.11013882]
[1731797241463,0.055042,90789.0,90787.0,0.25319031]
[1731797241660,0.055042,90789.0,90788.0,0.11014125]
[1731797248471,0.055042,90789.0,90788.0,0.30819523]
[1731797249075,0.055042,90789.0,90788.0,0.11014125]
[1731797249278,0.18633231,90789.0,90788.0,0.11014125]
[1731797250181,0.18633231,90789.0,90787.0,0.19805219]
[1731797250182,0.055043,90788.0,90787.0,0.19805219]
[1731797250365,0.18633331,90788.0,90787.0,0.19805219]
[1731797250563,0.18633331,90788.0,90786.0,0.032]
[1731797250564,0.055043,90787.0,90786.0,0.23005219]
[1731797250762,0.18633331,90787.0,90786.0,0.23005219]
[1731797251175,0.18633331,90787.0,90786.0,0.032]
[1731797251966,0.055043,90787.0,90786.0,0.032]
[1731797255981,0.055046,90782.0,90781.0,0.19805219]
[1731797256182,0.3608,90782.0,90781.0,0.19805219]
[1731797256370,0.415846,90782.0,90781.0,0.19805219]
[1731797257584,0.055047,90781.0,90780.0,0.19805219]
[1731797257769,0.055047,90781.0,90779.0,0.05387609]
[1731797257770,0.055047,90780.0,90779.0,0.19805219]
[1731797257975,0.055048,90779.0,90778.0,0.0039]
[1731797258180,0.055048,90779.0,90778.0,0.20191485]
[1731797258373,0.055048,90779.0,90778.0,0.0039]
[1731797258578,0.055048,90779.0,90778.0,0.20191485]
[1731797259184,0.055048,90779.0,90778.0,0.0039]
[1731797259385,0.18625748,90779.0,90778.0,0.0039]
[1731797260282,0.055048,90779.0,90778.0,0.0039]
[1731797260485,0.18623867,90779.0,90778.0,0.0039]
[1731797260695,0.18623951,90779.0,90778.0,0.0039]
[1731797261179,0.055048,90779.0,90778.0,0.0039]
[1731797261375,0.18623668,90779.0,90778.0,0.0039]
[1731797261572,0.055048,90779.0,90778.0,0.0039]
[1731797263685,0.415848,90779.0,90778.0,0.0039]
[1731797265491,0.055048,90779.0,90778.0,0.0039]
[1731797265679,0.415848,90779.0,90778.0,0.0039]
[1731797266280,0.055048,90779.0,90778.0,0.0039]
[1731797266491,0.415848,90779.0,90778.0,0.0039]
[1731797267182,0.48441548,90779.0,90778.0,0.0039]
[1731797269696,0.415848,90779.0,90778.0,0.0039]
[1731797273090,0.48441548,90779.0,90778.0,0.0039]
[1731797275588,0.415848,90779.0,90778.0,0.0039]
[1731797276593,0.055048,90779.0,90778.0,0.0039]
[1731797276800,0.415848,90779.0,90778.0,0.0039]
[1731797280195,0.46940059,90779.0,90778.0,0.0039]
[1731797280896,0.415848,90779.0,90778.0,0.0039]
[1731797281493,0.46939953,90779.0,90778.0,0.0039]
[1731797282410,0.54675953,90779.0,90778.0,0.0039]
[1731797287401,0.74369674,90779.0,90778.0,0.0039]
[1731797287989,0.54675953,90779.0,90778.0,0.0039]
[1731797291002,0.54676181,90779.0,90778.0,0.0039]
[1731797292489,0.74369902,90779.0,90778.0,0.0039]
[1731797294605,0.54676181,90779.0,90778.0,0.0039]
[1731797298199,0.74369902,90779.0,90778.0,0.0039]
[1731797299605,0.54676181,90779.0,90778.0,0.0039]
[1731797300602,0.7438464,90779.0,90778.0,0.0039]
[1731797300809,0.54676181,90779.0,90778.0,0.0039]
[1731797304416,0.055049,90778.0,90777.0,0.00277638]
[1731797304713,0.10860281,90778.0,90777.0,0.00277638]
[1731797308608,0.1086038,90778.0,90777.0,0.00277638]
[1731797309515,0.1859638,90778.0,90777.0,0.00277638]
[1731797312923,0.5467638,90778.0,90777.0,0.00277638]
[1731797314002,0.4694038,90778.0,90777.0,0.00277638]
[1731797314202,0.5467638,90778.0,90777.0,0.00277638]
[1731797314617,0.54676459,90778.0,90777.0,0.00277638]
[1731797319118,0.74376226,90778.0,90777.0,0.00277638]
[1731797319526,0.54676466,90778.0,90777.0,0.00277638]
[1731797319916,0.74376226,90778.0,90777.0,0.00277638]
[1731797320814,0.54676466,90778.0,90777.0,0.00277638]
[1731797322222,0.54676466,90778.0,90770.0,0.0051]
[1731797322526,0.055055,90768.0,90767.0,0.19801485]
[1731797322711,0.132415,90768.0,90767.0,0.19801485]
[1731797322910,0.055055,90767.0,90766.0,0.19801485]
[1731797323526,0.055057,90764.0,90763.0,5.87e-05]
[1731797323726,0.18638658,90764.0,90763.0,5.87e-05]
[1731797324226,0.18638658,90764.0,90763.0,0.1102315]
[1731797325326,0.055057,90764.0,90763.0,0.1102315]
[1731797326330,0.055057,90764.0,90763.0,0.308433]
[1731797326519,0.055057,90764.0,90763.0,0.1102315]
[1731797334533,0.055057,90764.0,90762.0,0.31907445]
[1731797334534,1.05988748,90764.0,90762.0,0.06816465]
[1731797334737,1.05988748,90764.0,90670.0,0.59466621]
[1731797334738,0.055109,90679.0,90670.0,0.59466621]
[1731797334942,0.3972,90740.0,90658.0,0.07847033]
[1731797334943,0.85873496,90671.0,90658.0,0.0399]
[1731797335123,0.3608,90659.0,90658.0,0.0398]
[1731797335323,0.49364264,90659.0,90606.0,0.3608]
[1731797335536,0.415948,90615.0,90606.0,0.3608]
[1731797335740,0.06856748,90609.0,90607.0,0.11036147]
[1731797335939,0.055149,90613.0,90608.0,1.1034086]
[1731797336124,0.13035496,90611.0,90607.0,1.21377007]
[1731797336425,0.05170563,90612.0,90600.0,0.03929772]
[1731797336426,0.055156,90601.0,90600.0,0.03929772]
[1731797336625,0.05516,90595.0,90586.0,1.1034086]
[1731797336825,0.3608,90587.0,90580.0,1.1034086]
[1731797337028,0.22706994,90583.0,90579.0,0.0958]
[1731797337230,0.85813959,90586.0,90572.0,0.3608]
[1731797337231,0.06894662,90586.0,90572.0,0.3608]
[1731797337434,0.05517,90579.0,90572.0,0.36076]
[1731797337626,0.3617894,90579.0,90572.0,0.26000533]
[1731797337827,0.3617894,90578.0,90573.0,0.3312]
[1731797338037,0.415963,90590.0,90574.0,0.0958]
[1731797338038,0.25823274,90590.0,90574.0,0.0958]
[1731797338229,0.00165669,90599.0,90587.0,0.3608]
[1731797338432,0.31174658,90598.0,90588.0,0.33116]
[1731797338631,0.29540582,90612.0,90588.0,0.11040513]
[1731797338835,0.02206774,90605.0,90595.0,0.3608]
[1731797339135,8.951e-05,90617.0,90604.0,0.3608]
[1731797339341,0.40182731,90616.0,90613.0,0.055148]
[1731797339525,8.951e-05,90617.0,90613.0,0.055448]
[1731797339839,8.951e-05,90617.0,90610.0,0.10531893]
[1731797339840,8.951e-05,90617.0,90614.0,0.3608]
[1731797340043,8.951e-05,90617.0,90614.0,0.47117527]
[1731797340230,8.951e-05,90617.0,90614.0,0.3608]
[1731797340542,8.951e-05,90617.0,90615.0,0.11035639]
[1731797341344,8.951e-05,90617.0,90615.0,0.16550339]
[1731797345936,0.00689662,90616.0,90615.0,0.16550339]
[1731797346136,0.0167262,90620.0,90619.0,0.055145]
[1731797346342,0.0167262,90621.0,90619.0,0.055145]
[1731797346533,0.12811086,90620.0,90619.0,0.055145]
[1731797346734,0.12811086,90622.0,90617.0,0.3608]
[1731797346939,0.12811086,90622.0,90621.0,0.055144]
[1731797347145,0.12811086,90623.0,90621.0,0.05525286]
[1731797347352,0.02385944,90622.0,90621.0,0.05525286]
[1731797347534,0.12811086,90625.0,90623.0,0.055143]
[1731797347849,0.12811086,90625.0,90624.0,0.3608]
[1731797348239,0.12811086,90625.0,90624.0,0.47114908]
[1731797348437,0.07811086,90626.0,90625.0,0.055142]
[1731797348644,0.36236001,90652.0,90624.0,0.47114908]
[1731797348645,0.07976786,90628.0,90627.0,0.05514]
[1731797348848,0.07976786,90628.0,90624.0,0.3608]
[1731797349049,0.07976786,90628.0,90627.0,0.11034543]
[1731797349245,0.07976786,90628.0,90624.0,0.19530798]
[1731797349439,0.001657,90628.0,90624.0,0.19530798]
[1731797349646,0.001657,90628.0,90627.0,0.11034361]
[1731797349840,0.001657,90628.0,90624.0,0.19530798]
[1731797349841,0.001657,90628.0,90624.0,0.07396274]
[1731797350054,0.001657,90628.0,90627.0,0.16548361]
[1731797350238,0.001657,90628.0,90627.0,0.05514]
[1731797350554,0.001657,90628.0,90627.0,0.16548361]
[1731797353841,0.0051,90632.0,90631.0,0.055138]
[1731797354448,0.0051,90632.0,90631.0,0.16547491]
[1731797355052,0.3608,90643.0,90631.0,0.16547491]
[1731797355253,0.3608,90643.0,90642.0,0.055131]
[1731797355447,0.3608,90643.0,90642.0,0.151011]
[1731797356051,0.0001095,90648.0,90647.0,0.055128]
[1731797356655,0.0001095,90648.0,90647.0,0.16545152]
[1731797358848,0.0001095,90648.0,90642.0,0.09588]
[1731797358849,0.0001095,90648.0,90642.0,0.04828096]
[1731797359052,0.0001095,90648.0,90647.0,0.11031743]
[1731797359355,0.0001095,90648.0,90642.0,0.04828096]
[1731797359757,0.0001095,90648.0,90647.0,0.11032048]
[1731797360051,0.0001095,90648.0,90642.0,0.40908096]
[1731797360255,0.0001095,90648.0,90647.0,0.16544848]
[1731797360449,0.0001095,90648.0,90647.0,0.055128]
[1731797360953,0.0001095,90648.0,90647.0,0.16544848]
[1731797362356,0.01272483,90648.0,90647.0,0.16544848]
[1731797362859,0.0001095,90648.0,90647.0,0.16544848]
[1731797363355,0.01246548,90648.0,90647.0,0.16544848]
[1731797363660,0.06608084,90648.0,90647.0,0.16544848]
[1731797364252,0.08595839,90648.0,90647.0,0.16544848]
[1731797364450,0.29165018,90648.0,90647.0,0.16544848]
[1731797364652,0.29165018,90648.0,90647.0,0.09588]
[1731797364953,0.29165018,90648.0,90647.0,0.26132543]
[1731797365663,0.28144174,90648.0,90647.0,0.26132543]
[1731797366563,0.08595839,90648.0,90647.0,0.26132543]
[1731797367350,0.22782761,90648.0,90647.0,0.26132543]
[1731797367560,0.08595839,90648.0,90647.0,0.26132543]
[1731797368357,0.09285264,90648.0,90647.0,0.26132543]
[1731797368858,0.05372449,90648.0,90647.0,0.26132543]
[1731797369160,0.0001095,90648.0,90647.0,0.30544276]
[1731797370664,0.18899037,90648.0,90647.0,0.30544276]
[1731797372953,0.0001095,90648.0,90647.0,0.30544276]
[1731797373355,0.18893269,90648.0,90647.0,0.30544276]
[1731797373550,0.24254768,90648.0,90647.0,0.30544276]
[1731797373858,5.182e-05,90648.0,90647.0,0.30544276]
[1731797374266,0.18903525,90648.0,90647.0,0.30544276]
[1731797374561,0.08903525,90648.0,90647.0,0.30544276]
[1731797374749,0.05361374,90648.0,90647.0,0.30544276]
[1731797375056,0.05361304,90648.0,90647.0,0.30544276]
[1731797375251,0.0051,90652.0,90650.0,0.055126]
[1731797375451,0.05361304,90651.0,90647.0,0.30544276]
[1731797375653,0.05361304,90651.0,90650.0,0.055126]
[1731797376452,0.05361304,90651.0,90650.0,0.16543978]
[1731797382167,0.10873904,90651.0,90647.0,0.13999733]
[1731797382361,0.05361304,90650.0,90649.0,0.055127]
[1731797382758,0.05361304,90650.0,90649.0,0.148367]
[1731797382965,0.05361304,90650.0,90649.0,0.25868078]
[1731797383175,0.0324,90651.0,90649.0,0.20355378]
[1731797383473,0.05361779,90650.0,90649.0,0.25868078]
[1731797384666,0.0324,90651.0,90649.0,0.25868078]
[1731797384667,0.0324,90651.0,90650.0,0.055126]
[1731797385072,0.26987686,90651.0,90650.0,0.055126]
[1731797385270,0.26987686,90651.0,90650.0,0.165441]
[1731797385568,0.26987686,90651.0,90650.0,0.110315]
[1731797385759,0.32500286,90651.0,90650.0,0.110315]
[1731797385956,0.26987686,90651.0,90635.0,0.3608]
[1731797386163,0.19664218,90637.0,90636.0,0.148375]
[1731797386372,0.19664218,90637.0,90636.0,0.20355378]
[1731797386373,0.05361886,90637.0,90636.0,0.20355378]
[1731797386564,0.3659,90645.0,90636.0,0.09324]
[1731797386565,0.2502626,90644.0,90636.0,0.09324]
[1731797386870,0.05362042,90643.0,90642.0,0.055131]
[1731797387072,0.2502626,90644.0,90637.0,0.09324]
[1731797387270,0.05362042,90643.0,90642.0,0.055131]
[1731797387468,0.05362042,90643.0,90638.0,0.11032595]
[1731797387662,0.05361993,90642.0,90641.0,0.055132]
[1731797387864,0.05361993,90644.0,90638.0,0.055134]
[1731797388066,0.25026211,90644.0,90643.0,0.055131]
[1731797388566,0.3659,90645.0,90643.0,0.09324]
[1731797388760,0.3659,90645.0,90643.0,0.2586933]
[1731797388761,0.05362009,90644.0,90643.0,0.2586933]
[1731797389861,0.16384741,90644.0,90643.0,0.2586933]
[1731797390067,0.52974741,90645.0,90644.0,0.05513]
[1731797390463,0.3659,90645.0,90644.0,0.05513]
[1731797390669,0.3659,90645.0,90644.0,0.16545108]
[1731797395569,0.0051,90645.0,90644.0,0.16545108]
[1731797396370,0.0051,90645.0,90644.0,0.25869108]
[1731797397265,0.0051,90645.0,90644.0,0.58965108]
[1731797397564,0.3608,90652.0,90651.0,0.055126]
[1731797398365,0.3608,90652.0,90651.0,0.16544708]
[1731797398563,0.3608,90652.0,90651.0,0.25408708]
[1731797399475,0.3608,90652.0,90636.0,0.08864]
[1731797399476,0.055134,90638.0,90636.0,0.08864]
[1731797399674,0.85216393,90652.0,90635.0,0.33061478]
[1731797399675,0.415934,90637.0,90635.0,0.33061478]
[1731797399971,0.415934,90637.0,90636.0,0.08864]
[1731797400177,0.415934,90637.0,90636.0,0.19895257]
[1731797400382,0.415934,90637.0,90636.0,0.08864]
[1731797400681,0.415934,90637.0,90636.0,0.19897082]
[1731797403277,0.415934,90637.0,90636.0,0.14897082]